[Event "Early-Titled-Tuesday-Blitz-September-12-2023"]
[Site "Chess.com"]
[Date "2023.09.12"]
[Round "7"]
[White "FabianoCaruana"]
[Black "Andreikka"]
[Result "1-0"]
[WhiteElo "3079"]
[BlackElo "3004"]
[TimeControl "180+1"]
[EndTime "9:18:38 PDT"]
[Termination "FabianoCaruana won by resignation"]

1. c4 {[%clk 0:03:00.9]} 1... e6 {[%clk 0:02:59.2]} 2. Nc3 {[%clk 0:03:01]} 2...
d5 {[%clk 0:02:59.2]} 3. d4 {[%clk 0:03:01.6]} 3... Nf6 {[%clk 0:02:59.1]} 4.
cxd5 {[%clk 0:03:02.3]} 4... exd5 {[%clk 0:02:59.5]} 5. Bg5 {[%clk 0:03:02.8]}
5... c6 {[%clk 0:02:58.9]} 6. Qc2 {[%clk 0:03:03.4]} 6... h6 {[%clk 0:02:57.9]}
7. Bh4 {[%clk 0:03:02.8]} 7... Be7 {[%clk 0:02:57.8]} 8. e3 {[%clk 0:03:03]}
8... O-O {[%clk 0:02:58.3]} 9. Bd3 {[%clk 0:03:03.6]} 9... Ne8 {[%clk
0:02:57.9]} 10. Bg3 {[%clk 0:03:01.6]} 10... Nd6 {[%clk 0:02:58.5]} 11. Nf3
{[%clk 0:03:00.3]} 11... Be6 {[%clk 0:02:59]} 12. O-O {[%clk 0:03:00.4]} 12...
Nd7 {[%clk 0:02:59.3]} 13. Ne5 {[%clk 0:02:54.5]} 13... Nf6 {[%clk 0:02:59.7]}
14. f3 {[%clk 0:02:46.9]} 14... Qc8 {[%clk 0:02:59.2]} 15. Rae1 {[%clk
0:02:46.4]} 15... c5 {[%clk 0:02:55.9]} 16. Qf2 {[%clk 0:02:40.9]} 16... Bf5
{[%clk 0:02:45.8]} 17. Bh4 {[%clk 0:02:32.1]} 17... g5 {[%clk 0:02:27.3]} 18.
Bg3 {[%clk 0:02:28.8]} 18... Bxd3 {[%clk 0:02:11.4]} 19. Nxd3 {[%clk 0:02:29.7]}
19... c4 {[%clk 0:02:03.5]} 20. Nb4 {[%clk 0:01:44.6]} 20... Qe6 {[%clk
0:02:00.4]} 21. Be5 {[%clk 0:01:44.8]} 21... Nde8 {[%clk 0:01:42.2]} 22. a3
{[%clk 0:01:43.7]} 22... a5 {[%clk 0:01:24.7]} 23. Nc2 {[%clk 0:01:43.6]} 23...
Nd7 {[%clk 0:01:20.8]} 24. e4 {[%clk 0:01:29.3]} 24... dxe4 {[%clk 0:01:09.2]}
25. Rxe4 {[%clk 0:01:30.2]} 25... Qc6 {[%clk 0:00:59.9]} 26. Ne3 {[%clk
0:01:22.2]} 26... f5 {[%clk 0:00:47.9]} 27. Ned5 {[%clk 0:01:22.3]} 27... Bd8
{[%clk 0:00:46.2]} 28. Re2 {[%clk 0:01:16.1]} 28... b5 {[%clk 0:00:45.8]} 29.
Rfe1 {[%clk 0:01:12.2]} 29... Nxe5 {[%clk 0:00:35.9]} 30. Rxe5 {[%clk
0:01:09.7]} 30... Nd6 {[%clk 0:00:21.4]} 31. Re6 {[%clk 0:01:04.1]} 31... Kg7
{[%clk 0:00:20.6]} 32. Qe3 {[%clk 0:00:54.8]} 32... Ra6 {[%clk 0:00:13.5]} 33.
Qe5+ {[%clk 0:00:51]} 33... Kh7 {[%clk 0:00:13.8]} 34. Ne7 {[%clk 0:00:32.1]}
34... Qd7 {[%clk 0:00:11.8]} 35. Ncd5 {[%clk 0:00:29.4]} 35... Qa7 {[%clk
0:00:05.2]} 36. Rxd6 {[%clk 0:00:23.5]} 36... Rxd6 {[%clk 0:00:04.8]} 37. Qxd6
{[%clk 0:00:24.4]} 37... Qxd4+ {[%clk 0:00:05.3]} 38. Kh1 {[%clk 0:00:25.1]}
38... Qg7 {[%clk 0:00:02]} 39. Nc6 {[%clk 0:00:21.8]} 39... Bf6 {[%clk
0:00:01.5]} 40. Nxf6+ {[%clk 0:00:22]} 40... Rxf6 {[%clk 0:00:02]} 41. Qd5
{[%clk 0:00:20.7]} 41... Rf7 {[%clk 0:00:02.6]} 42. Nd4 {[%clk 0:00:18.3]} 42...
g4 {[%clk 0:00:03.5]} 43. Nxf5 {[%clk 0:00:17.3]} 43... Qf6 {[%clk 0:00:03.2]}
44. fxg4 {[%clk 0:00:17.5]} 44... b4 {[%clk 0:00:01.7]} 45. axb4 {[%clk
0:00:17.2]} 45... axb4 {[%clk 0:00:02.6]} 46. h3 {[%clk 0:00:17.3]} 46... c3
{[%clk 0:00:02.8]} 47. bxc3 {[%clk 0:00:18]} 47... bxc3 {[%clk 0:00:03.7]} 48.
Qd3 {[%clk 0:00:16.4]} 48... Rc7 {[%clk 0:00:03.7]} 49. Nd6+ {[%clk 0:00:14.5]}
49... Kg8 {[%clk 0:00:03.7]} 50. Ne8 {[%clk 0:00:12.9]} 50... Qf2 {[%clk
0:00:04.4]} 51. Rf1 {[%clk 0:00:11.3]} 51... Rd7 {[%clk 0:00:04.6]} 52. Qc4+
{[%clk 0:00:10.5]} 52... Qf7 {[%clk 0:00:02.3]} 53. Rxf7 {[%clk 0:00:10]} 1-0

[Event "Early-Titled-Tuesday-Blitz-September-12-2023"]
[Site "Chess.com"]
[Date "2023.09.12"]
[Round "7"]
[White "Hope_6"]
[Black "OparinGrigoriy"]
[Result "0-1"]
[WhiteElo "2695"]
[BlackElo "3013"]
[TimeControl "180+1"]
[EndTime "9:18:38 PDT"]
[Termination "OparinGrigoriy won by resignation"]

1. d4 {[%clk 0:03:00]} 1... Nf6 {[%clk 0:02:59.9]} 2. c4 {[%clk 0:02:59.3]} 2...
e6 {[%clk 0:03:00.6]} 3. Nf3 {[%clk 0:02:59.1]} 3... b6 {[%clk 0:02:59.8]} 4. a3
{[%clk 0:02:57.1]} 4... Bb7 {[%clk 0:03:00.1]} 5. Nc3 {[%clk 0:02:57.1]} 5...
Ne4 {[%clk 0:02:59]} 6. Nxe4 {[%clk 0:02:52.1]} 6... Bxe4 {[%clk 0:02:59.9]} 7.
e3 {[%clk 0:02:50.1]} 7... d6 {[%clk 0:03:00.2]} 8. Bd3 {[%clk 0:02:49]} 8...
Bxd3 {[%clk 0:03:00.6]} 9. Qxd3 {[%clk 0:02:49.2]} 9... Nd7 {[%clk 0:03:01.1]}
10. O-O {[%clk 0:02:48.5]} 10... Be7 {[%clk 0:03:01.6]} 11. e4 {[%clk
0:02:47.8]} 11... O-O {[%clk 0:03:02.1]} 12. b4 {[%clk 0:02:46.4]} 12... a5
{[%clk 0:03:02.2]} 13. Bb2 {[%clk 0:02:45.4]} 13... Qc8 {[%clk 0:03:00.8]} 14.
d5 {[%clk 0:02:43.4]} 14... e5 {[%clk 0:02:53.7]} 15. Rfc1 {[%clk 0:02:36.2]}
15... g6 {[%clk 0:02:37]} 16. Qe2 {[%clk 0:02:33.1]} 16... Bf6 {[%clk
0:02:28.6]} 17. Ne1 {[%clk 0:02:27.7]} 17... Bg5 {[%clk 0:02:21.3]} 18. Rd1
{[%clk 0:02:21]} 18... f5 {[%clk 0:02:20.1]} 19. Nd3 {[%clk 0:02:09.6]} 19...
fxe4 {[%clk 0:02:19.9]} 20. Qxe4 {[%clk 0:02:09.2]} 20... Nf6 {[%clk 0:02:20.4]}
21. Qe2 {[%clk 0:02:08.6]} 21... e4 {[%clk 0:02:07.1]} 22. Ne1 {[%clk
0:01:46.4]} 22... Qf5 {[%clk 0:02:07]} 23. Nc2 {[%clk 0:01:41.8]} 23... Ng4
{[%clk 0:01:58.6]} 24. Rf1 {[%clk 0:01:41.2]} 24... axb4 {[%clk 0:00:36.9]} 25.
Nd4 {[%clk 0:01:30.8]} 25... Qf4 {[%clk 0:00:21.6]} 26. g3 {[%clk 0:01:29.9]}
26... Qd2 {[%clk 0:00:21.7]} 27. Qxg4 {[%clk 0:01:10]} 27... Qxb2 {[%clk
0:00:21.9]} 28. Ne6 {[%clk 0:01:05.7]} 28... Rxf2 {[%clk 0:00:22.1]} 29. Rxf2
{[%clk 0:00:33.7]} 29... Qxa1+ {[%clk 0:00:19.3]} 30. Kg2 {[%clk 0:00:34.3]}
30... Be3 {[%clk 0:00:17.6]} 31. Re2 {[%clk 0:00:34.2]} 31... Qg1+ {[%clk
0:00:14.6]} 32. Kh3 {[%clk 0:00:33.1]} 32... Qf1+ {[%clk 0:00:15.3]} 33. Kh4
{[%clk 0:00:29.6]} 33... Qf6+ {[%clk 0:00:09.9]} 34. Kh3 {[%clk 0:00:29.4]}
34... Qf1+ {[%clk 0:00:10]} 35. Kh4 {[%clk 0:00:29.2]} 35... Bh6 {[%clk
0:00:05.8]} 36. axb4 {[%clk 0:00:23.9]} 36... Qf6+ {[%clk 0:00:05.3]} 37. Kh3
{[%clk 0:00:23.7]} 37... Qf1+ {[%clk 0:00:05.8]} 38. Kh4 {[%clk 0:00:22.8]}
38... e3 {[%clk 0:00:06]} 39. Nxc7 {[%clk 0:00:16.4]} 39... Rf8 {[%clk
0:00:05.5]} 40. Ne6 {[%clk 0:00:14.5]} 40... Rf5 {[%clk 0:00:05.1]} 41. c5
{[%clk 0:00:09.7]} 41... Rh5+ {[%clk 0:00:04.9]} 42. Qxh5 {[%clk 0:00:09.6]}
42... gxh5 {[%clk 0:00:05.8]} 43. cxd6 {[%clk 0:00:06.8]} 43... Bf8 {[%clk
0:00:04.6]} 44. Nxf8 {[%clk 0:00:05.6]} 44... Qxe2 {[%clk 0:00:04.2]} 45. Kg5
{[%clk 0:00:04.9]} 45... Qg4+ {[%clk 0:00:04.4]} 46. Kf6 {[%clk 0:00:05.3]}
46... Kxf8 {[%clk 0:00:05]} 47. d7 {[%clk 0:00:05.9]} 47... Qxd7 {[%clk
0:00:05.6]} 0-1

[Event "Early-Titled-Tuesday-Blitz-September-12-2023"]
[Site "Chess.com"]
[Date "2023.09.12"]
[Round "7"]
[White "charlescandycampbell"]
[Black "Viacheslav92"]
[Result "1/2-1/2"]
[WhiteElo "2312"]
[BlackElo "2502"]
[TimeControl "180+1"]
[EndTime "9:18:38 PDT"]
[Termination "Game drawn - insufficient material"]

1. d4 {[%clk 0:03:00.9]} 1... Nf6 {[%clk 0:02:58.9]} 2. Nf3 {[%clk 0:03:00.5]}
2... g6 {[%clk 0:02:59.4]} 3. c4 {[%clk 0:03:00.7]} 3... Bg7 {[%clk 0:02:59.8]}
4. Nc3 {[%clk 0:03:01]} 4... O-O {[%clk 0:03:00]} 5. g3 {[%clk 0:03:01.5]} 5...
d6 {[%clk 0:03:00.9]} 6. Bg2 {[%clk 0:03:01.9]} 6... c6 {[%clk 0:03:00.2]} 7.
O-O {[%clk 0:03:02.1]} 7... Qa5 {[%clk 0:03:00.9]} 8. h3 {[%clk 0:03:02]} 8...
Qa6 {[%clk 0:02:52.3]} 9. Qb3 {[%clk 0:02:51.3]} 9... Bf5 {[%clk 0:02:50.4]} 10.
Nh4 {[%clk 0:02:46]} 10... Be6 {[%clk 0:02:50]} 11. d5 {[%clk 0:02:45.6]} 11...
cxd5 {[%clk 0:02:49.5]} 12. cxd5 {[%clk 0:02:46.1]} 12... Bc8 {[%clk 0:02:42.9]}
13. e4 {[%clk 0:02:43.3]} 13... Nbd7 {[%clk 0:02:43.2]} 14. Be3 {[%clk
0:02:42.6]} 14... Nc5 {[%clk 0:02:38.6]} 15. Qc2 {[%clk 0:02:29.2]} 15... Bd7
{[%clk 0:02:34.6]} 16. b4 {[%clk 0:02:27.6]} 16... Na4 {[%clk 0:02:33.4]} 17.
Nxa4 {[%clk 0:02:26.3]} 17... Bxa4 {[%clk 0:02:27]} 18. Qd2 {[%clk 0:02:26.5]}
18... Rfc8 {[%clk 0:02:25.4]} 19. Rac1 {[%clk 0:02:25.4]} 19... h5 {[%clk
0:02:04.3]} 20. Rfe1 {[%clk 0:02:23.8]} 20... Nd7 {[%clk 0:01:53.8]} 21. f4
{[%clk 0:02:22.4]} 21... Nb6 {[%clk 0:01:52.7]} 22. Bf1 {[%clk 0:02:20.5]} 22...
Bb5 {[%clk 0:01:49.1]} 23. Bxb5 {[%clk 0:01:40]} 23... Qxb5 {[%clk 0:01:50]} 24.
Bd4 {[%clk 0:01:38.3]} 24... Nc4 {[%clk 0:01:40]} 25. Qd3 {[%clk 0:01:32.9]}
25... Qxb4 {[%clk 0:01:33.4]} 26. Bxg7 {[%clk 0:01:28.3]} 26... Kxg7 {[%clk
0:01:34.3]} 27. Qd4+ {[%clk 0:01:27.4]} 27... Kh7 {[%clk 0:01:21.5]} 28. f5
{[%clk 0:01:26]} 28... Qc5 {[%clk 0:01:05.9]} 29. fxg6+ {[%clk 0:01:24.8]} 29...
fxg6 {[%clk 0:01:04.9]} 30. Qxc5 {[%clk 0:01:18.3]} 30... Rxc5 {[%clk
0:01:05.8]} 31. e5 {[%clk 0:01:04.7]} 31... dxe5 {[%clk 0:00:21.9]} 32. Rxe5
{[%clk 0:01:03.3]} 32... Nxe5 {[%clk 0:00:20.8]} 33. Rxc5 {[%clk 0:01:03.3]}
33... Rd8 {[%clk 0:00:21.4]} 34. Rc7 {[%clk 0:01:01.9]} 34... Rd7 {[%clk
0:00:21.6]} 35. Rxd7 {[%clk 0:00:46.7]} 35... Nxd7 {[%clk 0:00:22.5]} 36. Ng2
{[%clk 0:00:46.3]} 36... Kg7 {[%clk 0:00:21.6]} 37. Kf2 {[%clk 0:00:46.3]} 37...
Kf6 {[%clk 0:00:22]} 38. Ne3 {[%clk 0:00:43.6]} 38... Ke5 {[%clk 0:00:21.2]} 39.
Kf3 {[%clk 0:00:43.6]} 39... Nb6 {[%clk 0:00:21.4]} 40. g4 {[%clk 0:00:43.2]}
40... Nxd5 {[%clk 0:00:20.7]} 41. gxh5 {[%clk 0:00:43.1]} 41... gxh5 {[%clk
0:00:21.2]} 42. Nc4+ {[%clk 0:00:42.4]} 42... Kd4 {[%clk 0:00:20.6]} 43. Na5
{[%clk 0:00:42.7]} 43... b5 {[%clk 0:00:18.4]} 44. Nc6+ {[%clk 0:00:42.1]} 44...
Kc3 {[%clk 0:00:18.1]} 45. Nxa7 {[%clk 0:00:43]} 45... b4 {[%clk 0:00:17.5]} 46.
Nc6 {[%clk 0:00:43.5]} 46... Kb2 {[%clk 0:00:16.8]} 47. Ke4 {[%clk 0:00:44]}
47... Nc3+ {[%clk 0:00:15.8]} 48. Kd4 {[%clk 0:00:43.4]} 48... Nxa2 {[%clk
0:00:16.1]} 49. Nxe7 {[%clk 0:00:43.5]} 49... Kc2 {[%clk 0:00:15.1]} 50. Nf5
{[%clk 0:00:30.8]} 50... b3 {[%clk 0:00:16]} 51. Ne3+ {[%clk 0:00:31]} 51... Kc1
{[%clk 0:00:11.9]} 52. Nc4 {[%clk 0:00:29.9]} 52... Nb4 {[%clk 0:00:09.8]} 53.
Kc3 {[%clk 0:00:29.6]} 53... Nd5+ {[%clk 0:00:08]} 54. Kxb3 {[%clk 0:00:29.5]}
54... Nf4 {[%clk 0:00:08.5]} 55. h4 {[%clk 0:00:28.3]} 55... Ng2 {[%clk
0:00:09.1]} 56. Ne5 {[%clk 0:00:24.3]} 56... Nxh4 {[%clk 0:00:10]} 57. Nd3+
{[%clk 0:00:24.6]} 57... Kd2 {[%clk 0:00:09.6]} 58. Nf4 {[%clk 0:00:25.5]} 58...
Nf3 {[%clk 0:00:09.7]} 59. Nxh5 {[%clk 0:00:24.5]} 1/2-1/2

[Event "Early-Titled-Tuesday-Blitz-September-12-2023"]
[Site "Chess.com"]
[Date "2023.09.12"]
[Round "7"]
[White "esrosenberg"]
[Black "LamaChampetre"]
[Result "1-0"]
[WhiteElo "2357"]
[BlackElo "2245"]
[TimeControl "180+1"]
[EndTime "9:18:38 PDT"]
[Termination "esrosenberg won by resignation"]

1. e4 {[%clk 0:02:55.4]} 1... c5 {[%clk 0:03:00.1]} 2. Nc3 {[%clk 0:02:55.1]}
2... Nc6 {[%clk 0:02:59.3]} 3. f4 {[%clk 0:02:55.1]} 3... g6 {[%clk 0:02:59.3]}
4. Nf3 {[%clk 0:02:55.1]} 4... Bg7 {[%clk 0:03:00]} 5. a4 {[%clk 0:02:55.8]}
5... d6 {[%clk 0:02:39]} 6. Bb5 {[%clk 0:02:38.8]} 6... Nh6 {[%clk 0:02:34]} 7.
Bxc6+ {[%clk 0:02:30.6]} 7... bxc6 {[%clk 0:02:33.9]} 8. O-O {[%clk 0:02:30.3]}
8... O-O {[%clk 0:02:33.7]} 9. d3 {[%clk 0:02:29.5]} 9... f5 {[%clk 0:02:31.7]}
10. Qe1 {[%clk 0:02:19.3]} 10... Qb6 {[%clk 0:02:24.2]} 11. a5 {[%clk
0:01:47.6]} 11... Qc7 {[%clk 0:02:19.8]} 12. Qh4 {[%clk 0:01:35.3]} 12... Ba6
{[%clk 0:02:16.7]} 13. Ng5 {[%clk 0:01:24.7]} 13... Qd7 {[%clk 0:02:00]} 14. e5
{[%clk 0:01:17.2]} 14... dxe5 {[%clk 0:01:34.2]} 15. fxe5 {[%clk 0:01:17.4]}
15... Qd4+ {[%clk 0:01:31.3]} 16. Qxd4 {[%clk 0:01:17.1]} 16... cxd4 {[%clk
0:01:31.9]} 17. Na4 {[%clk 0:01:07.7]} 17... Ng4 {[%clk 0:01:01.9]} 18. Ne6
{[%clk 0:01:07.5]} 18... Bxe5 {[%clk 0:00:31.1]} 19. h3 {[%clk 0:01:02.2]} 19...
Rf6 {[%clk 0:00:22.3]} 20. Nec5 {[%clk 0:00:51.8]} 20... Nh2 {[%clk 0:00:17]}
21. Nxa6 {[%clk 0:00:49.8]} 21... Nxf1 {[%clk 0:00:16.4]} 22. Kxf1 {[%clk
0:00:50.7]} 22... Raf8 {[%clk 0:00:15.6]} 23. Bg5 {[%clk 0:00:48.5]} 23... R6f7
{[%clk 0:00:15.4]} 24. N4c5 {[%clk 0:00:43.1]} 24... Bd6 {[%clk 0:00:13.3]} 25.
Ne6 {[%clk 0:00:42]} 25... Rc8 {[%clk 0:00:13.6]} 26. Nac5 {[%clk 0:00:39.2]}
26... Rb8 {[%clk 0:00:13.1]} 27. b3 {[%clk 0:00:38.2]} 27... Bxc5 {[%clk
0:00:12]} 28. Nxc5 {[%clk 0:00:38.3]} 28... e5 {[%clk 0:00:11.6]} 29. Re1 {[%clk
0:00:36]} 29... Re8 {[%clk 0:00:11.6]} 30. Re2 {[%clk 0:00:29.6]} 30... Kg7
{[%clk 0:00:11.9]} 31. Ke1 {[%clk 0:00:29.1]} 31... h6 {[%clk 0:00:12.4]} 32.
Bd2 {[%clk 0:00:28.5]} 32... g5 {[%clk 0:00:12.5]} 33. c3 {[%clk 0:00:25.9]}
33... Kf6 {[%clk 0:00:07.7]} 34. cxd4 {[%clk 0:00:25.2]} 34... Rfe7 {[%clk
0:00:07.6]} 35. dxe5+ {[%clk 0:00:23.5]} 35... Kg6 {[%clk 0:00:08]} 36. d4
{[%clk 0:00:23.5]} 36... f4 {[%clk 0:00:07.6]} 37. Bc3 {[%clk 0:00:21.2]} 37...
Kf5 {[%clk 0:00:07.8]} 38. Kf2 {[%clk 0:00:19.8]} 38... h5 {[%clk 0:00:08.1]}
39. g3 {[%clk 0:00:19.2]} 39... fxg3+ {[%clk 0:00:07.9]} 40. Kxg3 {[%clk
0:00:19.6]} 40... h4+ {[%clk 0:00:08]} 41. Kg2 {[%clk 0:00:18.9]} 41... g4
{[%clk 0:00:07.9]} 42. Rf2+ {[%clk 0:00:19]} 42... Kg5 {[%clk 0:00:07.4]} 43.
Ne4+ {[%clk 0:00:19.1]} 43... Kh5 {[%clk 0:00:06.8]} 44. Rf5+ {[%clk 0:00:18.8]}
44... Kg6 {[%clk 0:00:05.5]} 45. hxg4 {[%clk 0:00:19.4]} 45... h3+ {[%clk
0:00:05]} 46. Kxh3 {[%clk 0:00:19.6]} 46... Rb8 {[%clk 0:00:04.9]} 47. Rf6+
{[%clk 0:00:18.1]} 47... Kg7 {[%clk 0:00:04.1]} 48. Nc5 {[%clk 0:00:18.3]} 48...
Ree8 {[%clk 0:00:03.7]} 49. Rxc6 {[%clk 0:00:18.1]} 49... Rh8+ {[%clk
0:00:03.1]} 50. Kg3 {[%clk 0:00:18.7]} 50... Rbf8 {[%clk 0:00:01.3]} 51. Ne6+
{[%clk 0:00:18.4]} 51... Kf7 {[%clk 0:00:01.5]} 52. Nxf8 {[%clk 0:00:18.8]}
52... Rxf8 {[%clk 0:00:01.6]} 53. Rf6+ {[%clk 0:00:19]} 53... Ke7 {[%clk
0:00:01.8]} 54. Rxf8 {[%clk 0:00:19.4]} 1-0

[Event "Early-Titled-Tuesday-Blitz-September-12-2023"]
[Site "Chess.com"]
[Date "2023.09.12"]
[Round "7"]
[White "GianmarcoVaR"]
[Black "RobertoJBM"]
[Result "1-0"]
[WhiteElo "2636"]
[BlackElo "2807"]
[TimeControl "180+1"]
[EndTime "9:18:39 PDT"]
[Termination "GianmarcoVaR won by resignation"]

1. e4 {[%clk 0:02:56.9]} 1... c6 {[%clk 0:02:59.6]} 2. d4 {[%clk 0:02:53.6]}
2... d5 {[%clk 0:03:00.5]} 3. exd5 {[%clk 0:02:53.4]} 3... cxd5 {[%clk
0:03:00.5]} 4. Bd3 {[%clk 0:02:53.6]} 4... g6 {[%clk 0:03:00.8]} 5. Nf3 {[%clk
0:02:50.6]} 5... Nc6 {[%clk 0:03:00.1]} 6. O-O {[%clk 0:02:49.6]} 6... Bg4
{[%clk 0:02:58.4]} 7. c3 {[%clk 0:02:49.6]} 7... Bg7 {[%clk 0:02:58.2]} 8. Nbd2
{[%clk 0:02:46.2]} 8... Nf6 {[%clk 0:02:57.9]} 9. Re1 {[%clk 0:02:44]} 9... O-O
{[%clk 0:02:57.6]} 10. Nf1 {[%clk 0:02:43.2]} 10... e6 {[%clk 0:02:57]} 11. h3
{[%clk 0:02:39.4]} 11... Bxf3 {[%clk 0:02:57.4]} 12. Qxf3 {[%clk 0:02:40]} 12...
Ne8 {[%clk 0:02:54.3]} 13. Ne3 {[%clk 0:02:32.2]} 13... Nd6 {[%clk 0:02:53.5]}
14. Ng4 {[%clk 0:02:31.8]} 14... h5 {[%clk 0:02:50.3]} 15. Ne5 {[%clk 0:02:22]}
15... Nxe5 {[%clk 0:02:47.2]} 16. dxe5 {[%clk 0:02:22.5]} 16... Nc4 {[%clk
0:02:40]} 17. Bxc4 {[%clk 0:01:23.2]} 17... dxc4 {[%clk 0:02:39.5]} 18. Qxb7
{[%clk 0:01:17.7]} 18... Qd3 {[%clk 0:02:31.6]} 19. Qe4 {[%clk 0:01:08.8]} 19...
Rfd8 {[%clk 0:02:27.3]} 20. Qxd3 {[%clk 0:01:07.3]} 20... Rxd3 {[%clk 0:02:26]}
21. Be3 {[%clk 0:00:50.9]} 21... a5 {[%clk 0:02:18]} 22. Rad1 {[%clk 0:00:45.6]}
22... Rxd1 {[%clk 0:02:11.1]} 23. Rxd1 {[%clk 0:00:46.2]} 23... Bxe5 {[%clk
0:02:11.7]} 24. g4 {[%clk 0:00:42]} 24... hxg4 {[%clk 0:02:11]} 25. hxg4 {[%clk
0:00:42.9]} 25... Rb8 {[%clk 0:02:07.1]} 26. Bc1 {[%clk 0:00:39]} 26... Rb5
{[%clk 0:01:59.6]} 27. f4 {[%clk 0:00:34.9]} 27... Bf6 {[%clk 0:01:52.1]} 28.
Kf2 {[%clk 0:00:35.4]} 28... Rd5 {[%clk 0:01:50.2]} 29. Rxd5 {[%clk 0:00:18.9]}
29... exd5 {[%clk 0:01:51.1]} 30. a4 {[%clk 0:00:18.7]} 30... Kf8 {[%clk
0:01:49.5]} 31. Be3 {[%clk 0:00:18.3]} 31... Bd8 {[%clk 0:01:46.5]} 32. f5
{[%clk 0:00:18]} 32... gxf5 {[%clk 0:01:46.2]} 33. gxf5 {[%clk 0:00:18.6]} 33...
Ke7 {[%clk 0:01:45.5]} 34. Bg5+ {[%clk 0:00:17.6]} 34... f6 {[%clk 0:01:45.7]}
35. Be3 {[%clk 0:00:14.1]} 35... Kd6 {[%clk 0:01:45.9]} 36. Bd4 {[%clk
0:00:14.3]} 36... Ke7 {[%clk 0:01:41.7]} 37. Kf3 {[%clk 0:00:12.2]} 37... Bc7
{[%clk 0:01:41.7]} 38. Ke3 {[%clk 0:00:08.7]} 38... Be5 {[%clk 0:01:36.5]} 39.
Bb6 {[%clk 0:00:07.8]} 39... Kd7 {[%clk 0:01:37]} 40. Bxa5 {[%clk 0:00:08.1]}
40... Kc6 {[%clk 0:01:37.7]} 41. Bd8 {[%clk 0:00:08.1]} 41... Kc5 {[%clk
0:01:36.3]} 42. Be7+ {[%clk 0:00:07.3]} 42... Kb6 {[%clk 0:01:35]} 43. Bd8+
{[%clk 0:00:07.4]} 43... Kc5 {[%clk 0:01:35]} 44. Ba5 {[%clk 0:00:07.3]} 44...
d4+ {[%clk 0:01:33.1]} 45. Ke4 {[%clk 0:00:06.9]} 45... d3 {[%clk 0:01:30.9]}
46. Ke3 {[%clk 0:00:03.9]} 46... Bf4+ {[%clk 0:01:24.7]} 47. Kf3 {[%clk
0:00:02.3]} 47... Bc1 {[%clk 0:01:24.8]} 48. Bb4+ {[%clk 0:00:02.7]} 48... Kd5
{[%clk 0:01:22.1]} 49. Be7 {[%clk 0:00:02.5]} 49... Bxb2 {[%clk 0:00:53.2]} 50.
Bxf6 {[%clk 0:00:03]} 50... Ba3 {[%clk 0:00:53.6]} 51. Bd4 {[%clk 0:00:03.2]}
51... Bf8 {[%clk 0:00:48.6]} 52. a5 {[%clk 0:00:03.3]} 52... Kc6 {[%clk
0:00:48.9]} 53. a6 {[%clk 0:00:03.8]} 53... Kc7 {[%clk 0:00:47.8]} 54. f6 {[%clk
0:00:03.3]} 54... Kc6 {[%clk 0:00:47.4]} 55. f7 {[%clk 0:00:03.1]} 55... Kc7
{[%clk 0:00:47.2]} 56. Be3 {[%clk 0:00:03.3]} 56... Kc6 {[%clk 0:00:47]} 57. Ke4
{[%clk 0:00:03.6]} 57... Kc7 {[%clk 0:00:42.8]} 58. Kd5 {[%clk 0:00:03.5]} 58...
d2 {[%clk 0:00:33.6]} 59. Bxd2 {[%clk 0:00:03.7]} 59... Kb6 {[%clk 0:00:34.5]}
60. Kxc4 {[%clk 0:00:04]} 60... Kxa6 {[%clk 0:00:35]} 61. Be3 {[%clk 0:00:03]}
61... Kb7 {[%clk 0:00:35.9]} 62. Bc5 {[%clk 0:00:03.6]} 1-0